Workbook

Sheet Sheet1
A1: t | B1: l (cm) | C1: v (cm/s) | D1: w s-1 | E1: A (cm) | F1: x | G1: y1 | H1: y2
A2: 0 | B2: 2 | C2: 10 | D2: =2*PI()*C2/B2 -> 31.41592654 | E2: 1 | F2: 0 | G2: =E$2*SIN(2*PI()*F2/B$2-D$2*A$2) -> 0 | H2: =E$2*SIN(2*PI()*F2/B$2+D$2*A$2) -> 0
F3: =F2+0.05 -> 0.05 | G3: =E$2*SIN(2*PI()*F3/B$2-D$2*A$2) -> 0.156434465 | H3: =E$2*SIN(2*PI()*F3/B$2+D$2*A$2) -> 0.156434465
F4: =F3+0.05 -> 0.1 | G4: 0.3090169944 | H4: 0.3090169944
F5: 0.15 | G5: 0.4539904997 | H5: 0.4539904997
F6: 0.2 | G6: 0.5877852523 | H6: 0.5877852523
F7: 0.25 | G7: 0.7071067812 | H7: 0.7071067812
F8: 0.3 | G8: 0.8090169944 | H8: 0.8090169944
F9: 0.35 | G9: 0.8910065242 | H9: 0.8910065242
F10: 0.4 | G10: 0.9510565163 | H10: 0.9510565163
F11: 0.45 | G11: 0.9876883406 | H11: 0.9876883406
F12: 0.5 | G12: 1 | H12: 1
F13: 0.55 | G13: 0.9876883406 | H13: 0.9876883406
F14: 0.6 | G14: 0.9510565163 | H14: 0.9510565163
F15: 0.65 | G15: 0.8910065242 | H15: 0.8910065242
F16: 0.7 | G16: 0.8090169944 | H16: 0.8090169944
F17: 0.75 | G17: 0.7071067812 | H17: 0.7071067812
F18: 0.8 | G18: 0.5877852523 | H18: 0.5877852523
F19: 0.85 | G19: 0.4539904997 | H19: 0.4539904997
F20: 0.9 | G20: 0.3090169944 | H20: 0.3090169944
F21: 0.95 | G21: 0.156434465 | H21: 0.156434465
F22: 1 | G22: -7.656635742e-16 | H22: -7.656635742e-16
F23: 1.05 | G23: -0.156434465 | H23: -0.156434465
F24: 1.1 | G24: -0.3090169944 | H24: -0.3090169944
F25: 1.15 | G25: -0.4539904997 | H25: -0.4539904997
F26: 1.2 | G26: -0.5877852523 | H26: -0.5877852523
F27: 1.25 | G27: -0.7071067812 | H27: -0.7071067812
F28: 1.3 | G28: -0.8090169944 | H28: -0.8090169944
F29: 1.35 | G29: -0.8910065242 | H29: -0.8910065242
F30: 1.4 | G30: -0.9510565163 | H30: -0.9510565163
F31: 1.45 | G31: -0.9876883406 | H31: -0.9876883406
F32: 1.5 | G32: -1 | H32: -1
F33: 1.55 | G33: -0.9876883406 | H33: -0.9876883406
F34: 1.6 | G34: -0.9510565163 | H34: -0.9510565163
F35: 1.65 | G35: -0.8910065242 | H35: -0.8910065242
F36: 1.7 | G36: -0.8090169944 | H36: -0.8090169944
F37: 1.75 | G37: -0.7071067812 | H37: -0.7071067812
F38: 1.8 | G38: -0.5877852523 | H38: -0.5877852523
F39: 1.85 | G39: -0.4539904997 | H39: -0.4539904997
F40: 1.9 | G40: -0.3090169944 | H40: -0.3090169944
F41: 1.95 | G41: -0.156434465 | H41: -0.156434465
F42: 2 | G42: 2.419505568e-15 | H42: 2.419505568e-15
F43: 2.05 | G43: 0.156434465 | H43: 0.156434465
F44: 2.1 | G44: 0.3090169944 | H44: 0.3090169944
F45: 2.15 | G45: 0.4539904997 | H45: 0.4539904997
F46: 2.2 | G46: 0.5877852523 | H46: 0.5877852523
F47: 2.25 | G47: 0.7071067812 | H47: 0.7071067812
F48: 2.3 | G48: 0.8090169944 | H48: 0.8090169944
F49: 2.35 | G49: 0.8910065242 | H49: 0.8910065242
F50: 2.4 | G50: 0.9510565163 | H50: 0.9510565163
F51: 2.45 | G51: 0.9876883406 | H51: 0.9876883406
F52: 2.5 | G52: 1 | H52: 1
F53: 2.55 | G53: 0.9876883406 | H53: 0.9876883406
F54: 2.6 | G54: 0.9510565163 | H54: 0.9510565163
F55: 2.65 | G55: 0.8910065242 | H55: 0.8910065242
F56: 2.7 | G56: 0.8090169944 | H56: 0.8090169944
F57: 2.75 | G57: 0.7071067812 | H57: 0.7071067812
F58: 2.8 | G58: 0.5877852523 | H58: 0.5877852523
F59: 2.85 | G59: 0.4539904997 | H59: 0.4539904997
F60: 2.9 | G60: 0.3090169944 | H60: 0.3090169944
F61: 2.95 | G61: 0.156434465 | H61: 0.156434465
F62: 3 | G62: 9.249328733e-15 | H62: 9.249328733e-15
F63: 3.05 | G63: -0.156434465 | H63: -0.156434465
F64: 3.1 | G64: -0.3090169944 | H64: -0.3090169944
F65: 3.15 | G65: -0.4539904997 | H65: -0.4539904997
F66: 3.2 | G66: -0.5877852523 | H66: -0.5877852523
F67: 3.25 | G67: =E$2*SIN(2*PI()*F67/B$2-D$2*A$2) -> -0.7071067812 | H67: =E$2*SIN(2*PI()*F67/B$2+D$2*A$2) -> -0.7071067812
F68: =F67+0.05 -> 3.3 | G68: -0.8090169944 | H68: -0.8090169944
F69: 3.35 | G69: -0.8910065242 | H69: -0.8910065242
F70: 3.4 | G70: -0.9510565163 | H70: -0.9510565163
F71: 3.45 | G71: -0.9876883406 | H71: -0.9876883406
F72: 3.5 | G72: -1 | H72: -1
F73: 3.55 | G73: -0.9876883406 | H73: -0.9876883406
F74: 3.6 | G74: -0.9510565163 | H74: -0.9510565163
F75: 3.65 | G75: -0.8910065242 | H75: -0.8910065242
F76: 3.7 | G76: -0.8090169944 | H76: -0.8090169944
F77: 3.75 | G77: -0.7071067812 | H77: -0.7071067812
F78: 3.8 | G78: -0.5877852523 | H78: -0.5877852523
F79: 3.85 | G79: -0.4539904997 | H79: -0.4539904997
F80: 3.9 | G80: -0.3090169944 | H80: -0.3090169944
F81: =F80+0.05 -> 3.95 | G81: -0.156434465 | H81: -0.156434465
F82: =F81+0.05 -> 4 | G82: -2.002998462e-14 | H82: -2.002998462e-14
F83: 4.05 | G83: 0.156434465 | H83: 0.156434465
F84: 4.1 | G84: 0.3090169944 | H84: 0.3090169944
F85: 4.15 | G85: 0.4539904997 | H85: 0.4539904997
F86: 4.2 | G86: 0.5877852523 | H86: 0.5877852523
F87: 4.25 | G87: 0.7071067812 | H87: 0.7071067812
F88: 4.3 | G88: 0.8090169944 | H88: 0.8090169944
F89: 4.35 | G89: 0.8910065242 | H89: 0.8910065242
F90: 4.4 | G90: 0.9510565163 | H90: 0.9510565163
F91: 4.45 | G91: 0.9876883406 | H91: 0.9876883406
F92: 4.5 | G92: 1 | H92: 1
F93: 4.55 | G93: 0.9876883406 | H93: 0.9876883406
F94: 4.6 | G94: 0.9510565163 | H94: 0.9510565163
F95: 4.65 | G95: 0.8910065242 | H95: 0.8910065242
F96: 4.7 | G96: 0.8090169944 | H96: 0.8090169944
F97: 4.75 | G97: 0.7071067812 | H97: 0.7071067812
F98: 4.8 | G98: 0.5877852523 | H98: 0.5877852523
F99: 4.85 | G99: 0.4539904997 | H99: 0.4539904997
F100: 4.9 | G100: 0.3090169944 | H100: 0.3090169944
F101: 4.95 | G101: 0.156434465 | H101: 0.156434465
F102: 5 | G102: 3.08106405e-14 | H102: 3.08106405e-14
F103: 5.05 | G103: -0.156434465 | H103: -0.156434465
F104: 5.1 | G104: -0.3090169944 | H104: -0.3090169944
F105: 5.15 | G105: -0.4539904997 | H105: -0.4539904997
F106: 5.2 | G106: -0.5877852523 | H106: -0.5877852523
F107: 5.25 | G107: -0.7071067812 | H107: -0.7071067812
F108: 5.3 | G108: -0.8090169944 | H108: -0.8090169944
F109: 5.35 | G109: -0.8910065242 | H109: -0.8910065242
F110: 5.4 | G110: -0.9510565163 | H110: -0.9510565163
F111: 5.45 | G111: -0.9876883406 | H111: -0.9876883406
F112: =F111+0.05 -> 5.5 | G112: -1 | H112: -1
F113: =F112+0.05 -> 5.55 | G113: -0.9876883406 | H113: -0.9876883406
F114: 5.6 | G114: -0.9510565163 | H114: -0.9510565163
F115: 5.65 | G115: -0.8910065242 | H115: -0.8910065242
F116: 5.7 | G116: -0.8090169944 | H116: -0.8090169944
F117: 5.75 | G117: -0.7071067812 | H117: -0.7071067812
F118: 5.8 | G118: -0.5877852523 | H118: -0.5877852523
F119: 5.85 | G119: -0.4539904997 | H119: -0.4539904997
F120: 5.9 | G120: -0.3090169944 | H120: -0.3090169944
F121: 5.95 | G121: -0.156434465 | H121: -0.156434465
F122: 6 | G122: -4.336765322e-14 | H122: -4.336765322e-14
F123: 6.05 | G123: 0.156434465 | H123: 0.156434465
F124: 6.1 | G124: 0.3090169944 | H124: 0.3090169944
F125: 6.15 | G125: 0.4539904997 | H125: 0.4539904997
F126: 6.2 | G126: 0.5877852523 | H126: 0.5877852523
F127: 6.25 | G127: 0.7071067812 | H127: 0.7071067812
F128: 6.3 | G128: 0.8090169944 | H128: 0.8090169944
F129: 6.35 | G129: 0.8910065242 | H129: 0.8910065242
F130: 6.4 | G130: 0.9510565163 | H130: 0.9510565163
F131: 6.45 | G131: =E$2*SIN(2*PI()*F131/B$2-D$2*A$2) -> 0.9876883406 | H131: =E$2*SIN(2*PI()*F131/B$2+D$2*A$2) -> 0.9876883406
F132: 6.5 | G132: 1 | H132: 1
F133: 6.55 | G133: 0.9876883406 | H133: 0.9876883406
F134: 6.6 | G134: 0.9510565163 | H134: 0.9510565163
F135: 6.65 | G135: 0.8910065242 | H135: 0.8910065242
F136: 6.7 | G136: 0.8090169944 | H136: 0.8090169944
F137: 6.75 | G137: 0.7071067812 | H137: 0.7071067812
F138: 6.8 | G138: 0.5877852523 | H138: 0.5877852523
F139: 6.85 | G139: 0.4539904997 | H139: 0.4539904997
F140: 6.9 | G140: 0.3090169944 | H140: 0.3090169944
F141: 6.95 | G141: 0.156434465 | H141: 0.156434465
F142: 7 | G142: 5.41483091e-14 | H142: 5.41483091e-14
F143: 7.05 | G143: -0.156434465 | H143: -0.156434465
F144: 7.1 | G144: -0.3090169944 | H144: -0.3090169944
F145: 7.15 | G145: -0.4539904997 | H145: -0.4539904997
F146: 7.2 | G146: -0.5877852523 | H146: -0.5877852523
F147: 7.25 | G147: -0.7071067812 | H147: -0.7071067812
F148: 7.3 | G148: -0.8090169944 | H148: -0.8090169944
F149: =F148+0.05 -> 7.35 | G149: -0.8910065242 | H149: -0.8910065242
F150: =F149+0.05 -> 7.4 | G150: -0.9510565163 | H150: -0.9510565163
F151: 7.45 | G151: -0.9876883406 | H151: -0.9876883406
F152: 7.5 | G152: -1 | H152: -1
F153: 7.55 | G153: -0.9876883406 | H153: -0.9876883406
F154: 7.6 | G154: -0.9510565163 | H154: -0.9510565163
F155: 7.65 | G155: -0.8910065242 | H155: -0.8910065242
F156: 7.7 | G156: -0.8090169944 | H156: -0.8090169944
F157: 7.75 | G157: -0.7071067812 | H157: -0.7071067812
F158: 7.8 | G158: -0.5877852523 | H158: -0.5877852523
F159: 7.85 | G159: -0.4539904997 | H159: -0.4539904997
F160: 7.9 | G160: -0.3090169944 | H160: -0.3090169944
F161: 7.95 | G161: -0.156434465 | H161: -0.156434465
F162: =F161+0.05 -> 8 | G162: -6.492896498e-14 | H162: -6.492896498e-14

Sheet Sheet2
I2: Let time evolve from 0 to 10 s.
I11: Data are located on sheet 1.
